Cogmind - Beta 16 @@@ ROGUE MODE // 2026.01.13 @ 18:27:28 Player: leto Result: Self-destructed Performance ------------- Evolutions (3) 1500 Regions Visited (10) 2000 Robots Destroyed (177) 885 Value Destroyed (4881) 4881 Prototype IDs (7) 140 Alien Tech Used (0) 0 Bonus (1510) 1510 TOTAL SCORE: 10916 Bonus ------- High Alert Combat Kills 361 Follower Combat Kills 84 Entered Garrisons 200 Used RIF Installer 1000 Friendly Fire -135 Cogmind --------- Core Integrity 276/700 Matter 223/300 Energy 100/100 System Corruption 0% Temperature Cool (0) Movement Core (100) Ox1 Location -7/Factory Parts ------- > --- POWER (1) -------- (None) > --- PROPULSION (4) --- (None) > --- UTILITY (5) ------ Small Storage Unit Terrain Scanner Hacking Suite > --- WEAPON (3) ------- (None) > --- INVENTORY (8) ---- Xenon Bombardment Thruster Relay Coupler [NC] (28) Relay Coupler [Grunt] (29) Relay Coupler [Grunt] (23) Relay Coupler [Heavy] (12) Mini Grenade Launcher Improved Datajack Peak State ------------ > --- POWER ------------ Light Nuclear Core > --- PROPULSION ------- Airjet Cesium-ion Thruster Cesium-ion Thruster Xenon Bombardment Thruster > --- UTILITY ---------- Small Storage Unit Improved Sensor Array Improved Signal Interpreter Improved Terrain Scanner Hacking Suite > --- WEAPON ----------- Shock Rifle Shock Rifle Powered Hammer > --- INVENTORY -------- Relay Coupler [NC] Relay Coupler [Grunt] Relay Coupler [Grunt] Relay Coupler [Heavy] Enhanced Autogun Mini Grenade Launcher Mini Grenade Launcher Improved Datajack [Rating: 41] Favorites ----------- Power Cooled Ion Engine Engine Cooled Ion Engine Power Core Light Nuclear Core Propulsion Light Treads Treads Light Treads Leg Aluminum Leg Wheel Wheel Hover Unit Gravmag System Flight Unit Cesium-ion Thruster Utility Huge Storage Unit Device Structural Scanner Storage Huge Storage Unit Processor Improved Targeting Computer Hackware Hacking Suite Protection Core Shielding Weapon Improved Medium Laser Energy Gun Improved Medium Laser Energy Cannon Advanced Beam Cannon Ballistic Gun Enhanced Autogun Launcher Rocket Launcher Impact Weapon Powered Hammer Special Melee Weapon Datajack Build | -11 -10 -10 -9 -9 -9 -8 -8 -8 -8 -7 ------- Run | Yrd Mat Min Mat Min Exi Min Mat Gar Mat Fac Slots Evolved 6 | . . . 2 . . . 2 . . 2 Power . | . . . . . . . . . . . Propulsion 2 | . . . 1 . . . 1 . . . Utility 3 | . . . 1 . . . 1 . . 1 Weapon 1 | . . . . . . . . . . 1 Parts Attached 103 | 6 6 1 23 . 1 5 14 22 7 18 Power 7 | 1 . . 3 . . . 1 1 . 1 Engine 6 | 1 . . 3 . . . 1 1 . . Core 1 | . . . . . . . . . . 1 Reactor . | . . . . . . . . . . . Propulsion 34 | 2 . . 9 . . 2 4 9 1 7 Treads 22 | 2 . . 8 . . 2 4 5 1 . Leg 2 | . . . . . . . . 2 . . Wheel 1 | . . . . . . . . 1 . . Hover 3 | . . . . . . . . . . 3 Flight 6 | . . . 1 . . . . 1 . 4 Utility 32 | 1 4 1 3 . . 2 5 4 5 7 Device 10 | . . 1 . . . 2 . 3 1 3 Storage 6 | 1 3 . . . . . 1 . . 1 Processor 4 | . . . 1 . . . 1 . 1 1 Hackware 2 | . . . . . . . . . . 2 Protection 10 | . 1 . 2 . . . 3 1 3 . Artifact . | . . . . . . . . . . . Weapon 30 | 2 2 . 8 . 1 1 4 8 1 3 Energy Gun 10 | 1 . . 5 . . . . 2 . 2 Energy Cannon 2 | . . . 1 . . 1 . . . . Ballistic Gun 9 | 1 1 . 1 . . . 3 2 1 . Ballistic Cannon . | . . . . . . . . . . . Launcher 4 | . 1 . . . . . 1 2 . . Special Weapon . | . . . . . . . . . . . Impact Weapon 3 | . . . 1 . . . . 2 . . Slashing Weapon . | . . . . . . . . . . . Piercing Weapon . | . . . . . . . . . . . Special Melee Weapon 2 | . . . . . 1 . . . . 1 Unidentified Prototypes 7 | . . . 6 . . . 1 . . . Parts Lost 46 | . . . 8 . . 3 5 14 . 16 Power 4 | . . . 1 . . . . 2 . 1 Propulsion 23 | . . . 3 . . 2 2 7 . 9 Utility 9 | . . . 1 . . 1 2 2 . 3 Weapon 10 | . . . 3 . . . 1 3 . 3 Highest Loss Streak 7 | . . . 6 . . 3 2 4 . 7 To Critical Strikes . | . . . . . . . . . . . Average Backups 21 | 1 11 16 21 25 25 24 24 23 24 14 Power 1 | . 1 2 1 2 2 2 2 1 . . Propulsion 6 | . 5 7 7 8 8 7 6 6 6 2 Utility 6 | . 3 4 7 8 8 7 5 5 9 6 Weapon 6 | . 1 3 5 6 6 6 9 9 8 4 Tool/Special . | . . . . . . . . . . . Unused Backups 29 | . . . 11 . . . 3 3 3 9 Power 3 | . . . 1 . . . . 1 1 . Propulsion 2 | . . . . . . . . . . 2 Utility 13 | . . . 5 . . . 1 1 . 6 Weapon 11 | . . . 5 . . . 2 1 2 1 Tool/Special . | . . . . . . . . . . . Average Slot Usage (%) 91 | . 97 100 91 88 88 87 95 89 100 82 Engine 10 | . 13 14 10 11 11 11 9 8 9 1 Treads 28 | . 27 28 32 33 33 32 33 20 31 7 Leg 1 | . . . . . . . . 6 4 . Device 5 | . . 12 . . . . 12 14 7 7 Storage 10 | . 16 14 11 11 11 11 9 9 9 10 Processor 1 | . . . 3 . . . . . 3 5 Protection 11 | . 9 1 11 11 11 10 13 12 15 7 Energy Gun 8 | . 14 14 14 11 11 11 . 4 . 4 Energy Cannon 1 | . . . . 11 . . 3 . . . Ballistic Gun 7 | . 13 14 4 . . . 13 6 17 7 Impact Weapon 1 | . . . . . . . . 4 . 2 Special Melee Weapon 1 | . . . . . 10 7 . . . . Peak Build Rating 41 | 6 8 8 24 23 23 21 26 30 30 41 Average Rating 20 | 4 7 8 17 23 21 20 25 25 26 31 On Entrance 17 | . 6 8 8 21 23 21 21 23 30 28 Avg Prop Armor Cover (%) 7 | . . . . . . . . 7 4 9 Naked Turns . | . . . . . . . . . . . Heaviest Build 110 | 13 89 89 110 110 110 109 99 99 99 103 Greatest Support 80 | 40 40 40 60 60 60 60 80 80 80 80 Greatest Overweight (x) 32 | . 2 2 1 1 1 1 2 32 1 4 Average Overweight (x) 1 | . . 2 1 1 1 1 1 1 1 . Largest Inventory Capacity 25 | 8 25 25 25 25 25 25 25 25 25 25 Average Capacity 23 | 7 17 25 25 25 25 25 25 25 25 14 Most Carried 25 | 3 16 16 25 25 25 25 25 25 25 25 Average Carried 21 | 1 11 16 21 24 25 24 24 23 24 14 Final Capacity 25 | 8 25 25 25 25 25 25 25 25 25 8 Final Carried 25 | 3 16 16 25 25 25 21 25 25 25 7 Class Distribution -------------------- 73% | Mutant 12% | Bothacker-Mutant 11% | Scavenger-Mutant Dominant Class ---------------- Mutant | -10/Materials Mutant | -10/Mines Mutant | -9/Materials Mutant | -9/Mines Mutant | -9/Exiles Mutant | -8/Mines Mutant | -8/Materials Scavenger-Mutant | -8/Garrison Bothacker-Mutant | -8/Materials Bothacker-Mutant | -7/Factory Resources | -11 -10 -10 -9 -9 -9 -8 -8 -8 -8 -7 ----------- Run | Yrd Mat Min Mat Min Exi Min Mat Gar Mat Fac Matter Collected 3254 | 39 385 . 482 5 . 115 747 846 332 303 Remotely . | . . . . . . . . . . . Salvage Created 5466 | . 605 . 1515 . . 404 1286 1062 364 230 Parts 343 | . 50 . 94 . . 16 86 64 23 10 Haulers Intercepted 8 | . . . 4 . . . 4 . . . Recyclers Shooed 5 | . 1 . 4 . . . . . . . Parts Field Recycled . | . . . . . . . . . . . Retrieved Matter . | . . . . . . . . . . . Parts Self-Destructed . | . . . . . . . . . . . Prevented . | . . . . . . . . . . . Parts Restored . | . . . . . . . . . . . Kills | -11 -10 -10 -9 -9 -9 -8 -8 -8 -8 -7 ------- Run | Yrd Mat Min Mat Min Exi Min Mat Gar Mat Fac Combat Hostiles Destroyed 130 | . 14 . 33 . . 16 22 31 10 4 Melee 1 | . . . . . . . 1 . . . Guns 82 | . 11 . 26 . . 3 10 18 10 4 Cannons 11 | . . . 1 . . . 10 . . . AOE 34 | . 3 . 4 . . 13 1 13 . . Classes Destroyed 14 | . 7 . 3 . . 1 2 1 . . Worker 13 | . 1 . 3 . . . 9 . . . Builder 6 | . 3 . 1 . . . 1 . . 1 Tunneler 2 | . . . . . . 1 . . . 1 Hauler 8 | . . . 4 . . . 4 . . . Recycler 10 | . 2 . 2 . . 2 3 . . 1 Operator 5 | . 1 . 2 . . . 1 . 1 . Watcher 2 | . 1 . . . . . 1 . . . Swarmer 54 | . 6 . 13 . . 4 12 10 5 4 Grunt 49 | . 8 . 12 . . 10 2 15 2 . Brawler 5 | . . . 1 . . 2 . 2 . . Duelist 1 | . . . . . . . . 1 . . Sentry 15 | . . . 7 . . . 3 3 2 . Specialist 2 | . . . . . . . 2 . . . Hunter 4 | . . . . . . . 3 . 1 . Guerrilla 1 | . . . . . . . . 1 . . Best Kill Streak 13 | . 9 . 9 . . 13 9 6 4 4 Combat Bots Only 10 | . 5 . 7 . . 10 8 6 3 4 Max Kills in Single Turn 4 | . 4 . 4 . . 3 2 2 1 1 Gunslinging . | . . . . . . . . . . . Exploded 3 | . 2 . 2 . . 3 1 2 . . Melee 1 | . . . . . . . 1 . . . Uniques/NPCs Destroyed . | . . . . . . . . . . . Combat | -11 -10 -10 -9 -9 -9 -8 -8 -8 -8 -7 -------- Run | Yrd Mat Min Mat Min Exi Min Mat Gar Mat Fac Hostile Shots Fired 658 | . 63 . 164 . . 53 195 100 58 25 Missed 164 | . 12 . 44 . . 22 44 27 9 6 Hits 494 | . 51 . 120 . . 31 151 73 49 19 Melee 3 | . . . . . . 2 . 1 . . Projectile 491 | . 51 . 120 . . 29 151 72 49 19 Critical Strikes 12 | . . . 3 . . 2 3 3 1 . Actively Blocked 2 | . . . 1 . . . . 1 . . Damage Taken 7620 | . 561 . 1404 . . 726 1707 1372 613 1237 Core 1221 | . 110 . 176 . . 32 177 150 152 424 Absorbed by Shields 9 | . . . . . . . . 9 . . Redirected to Shielding 204 | . 8 . 20 . . . 89 77 6 4 Regen/Repaired (Parts) 460 | . 145 . 201 . . . 114 . . . Core Remaining (%) 54 | 100 . 56 . . . 48 . . 12 . Volleys Fired 473 | . 53 . 161 . . 21 110 73 40 15 Largest 2 | . 2 . 2 . . 2 2 2 2 2 Hottest 124 | . 60 . 124 . . 86 93 88 50 100 Shots Fired 821 | . 83 . 262 . . 38 214 114 80 30 Gun 706 | . 78 . 249 . . 17 147 105 80 30 Cannon 72 | . . . 7 . . . 65 . . . Launcher 43 | . 5 . 6 . . 21 2 9 . . Special . | . . . . . . . . . . . Kinetic 469 | . 47 . 110 . . . 147 59 80 26 Thermal 234 | . . . 146 . . 17 65 6 . . Explosive 43 | . 5 . 6 . . 21 2 9 . . Electromagnetic 75 | . 31 . . . . . . 40 . 4 Robot Hit Streak 18 | . 7 . 18 . . 12 11 12 16 8 Robot Miss Streak 8 | . 3 . 4 . . 1 3 8 4 5 Penetration Max 1 | . . . . . . . . 1 . . Secondary Targets 5 | . . . 2 . . . . 1 1 1 Max Gunslinging Chain 1 | . . . 1 . . . . 1 1 1 Shots Hit Robots 530 | . 47 . 169 . . 30 120 86 57 21 Core Hits 272 | . 34 . 67 . . 45 51 48 18 9 Critical Kills 2 | . . . . . . . 1 1 . . Critical Parts Destroyed 1 | . . . . . . . . . 1 . Critical Strikes 21 | . . . 15 . . . 1 4 1 . Burn 16 | . . . 15 . . . . 1 . . Destroy 3 | . . . . . . . 1 1 1 . Corrupt 2 | . . . . . . . . 2 . . Melee Attacks 37 | . . . 4 . . 1 4 23 . 5 Impact 19 | . . . 4 . . . 4 7 . 4 Slashing . | . . . . . . . . . . . Piercing . | . . . . . . . . . . . Sneak Attacks 21 | . . . . . . 1 . 16 . 4 Combat Hostiles . | . . . . . . . . . . . Follow-up Attacks . | . . . . . . . . . . . Damage Inflicted 11282 | . 767 . 2435 7 . 1850 2425 2213 977 608 Guns 6535 | . 454 . 1977 . . 216 1437 1177 966 308 Cannons 942 | . . . 124 . . . 818 . . . Explosions 3339 | . 276 . 299 . . 1631 153 980 . . Melee 348 | . . . . . . . . 48 . 300 Ramming 118 | . 37 . 35 7 . 3 17 8 11 . Kinetic 4141 | . 262 . 524 . . . 1437 644 966 308 Thermal 2801 | . . . 1577 . . 216 818 190 . . Explosive 3231 | . 276 . 299 . . 1631 153 872 . . Electromagnetic 643 | . 192 . . . . . . 451 . . Impact 348 | . . . . . . . . 48 . 300 Slashing . | . . . . . . . . . . . Piercing . | . . . . . . . . . . . Highest Corruption 2 | . . . . . . . . . 2 . Average Corruption 1 | . . . . . . . . . 1 . Corruption Purged 2 | . . . . . . . . . 2 . Corruption Blocked . | . . . . . . . . . . . Effects 10 | . . . . . . . . . 10 . Message Errors 3 | . . . . . . . . . 3 . Matter Fused 4 | . . . . . . . . . 4 . Heat Flow Errors 2 | . . . . . . . . . 2 . Data Loss (major) 1 | . . . . . . . . . 1 . Overload Shots . | . . . . . . . . . . . Overflow Damage 257 | . . . 16 . . 13 26 121 . 81 Projectiles . | . . . . . . . . . . . Explosions 176 | . . . 16 . . 13 26 121 . . Melee 81 | . . . . . . . . . . 81 Knockbacks 2 | . . . . . . . . 1 1 . Impact 2 | . . . . . . . . 1 1 . Kinetic . | . . . . . . . . . . . Secondary . | . . . . . . . . . . . Self-Inflicted Damage 728 | . . . 102 . . 239 . 387 . . Shots 19 | . . . 5 . . 7 . 7 . . Rammed 22 | . 9 . 5 1 . 1 4 1 1 . Targets Rammed 23 | . 9 . 5 1 . 1 5 1 1 . Kicked . | . . . . . . . . . . . Crushed 1 | . . . . . . . 1 . . . Highest Temperature 411 | . 73 . 398 . . 411 36 138 233 27 Average Temperature 66 | . 20 . 76 . . 163 6 41 42 15 Received Heat Transfer 1662 | . 213 . 429 . . 225 189 444 162 . Effects 7 | . . . 5 . . 2 . . . . Shutdowns 2 | . . . 1 . . 1 . . . . Energy Bleed 1 | . . . 1 . . . . . . . Interference 3 | . . . 3 . . . . . . . Damage (minor) 1 | . . . . . . 1 . . . . Siege Activations . | . . . . . . . . . . . Martial Activations . | . . . . . . . . . . . Shielding Activations . | . . . . . . . . . . . Robots Disrupted . | . . . . . . . . . . . Combat Hostiles . | . . . . . . . . . . . Robots Corrupted . | . . . . . . . . . . . Combat Hostiles . | . . . . . . . . . . . Parts Fried 3 | . . . . . . . . 1 . 2 Impact Corruptions 2 | . . . . . . . . . . 2 Robots Melted 2 | . . . 2 . . . . . . . Combat Hostiles 2 | . . . 2 . . . . . . . Parts Melted 17 | . . . 15 . . . 1 1 . . Heat Transferred 6982 | . . . 4662 . . 481 1480 359 . . Parts Sabotaged . | . . . . . . . . . . . Parts Stolen . | . . . . . . . . . . . Parts Stripped . | . . . . . . . . . . . Power Chain Reactions 2 | . . . . . . . . 2 . . Alert | -11 -10 -10 -9 -9 -9 -8 -8 -8 -8 -7 ------- Run | Yrd Mat Min Mat Min Exi Min Mat Gar Mat Fac Maximum Alert Level 4 | . 1 . 1 . . 1 1 4 2 1 Low Security (%) 63 | 100 90 100 80 100 . 72 81 2 . 87 Level 1 14 | . 9 . 19 . . 27 18 18 . 12 Level 2 11 | . . . . . . . . 19 100 . Level 3 7 | . . . . . . . . 42 . . Level 4 3 | . . . . . . . . 16 . . Level 5 . | . . . . . . . . . . . High Security . | . . . . . . . . . . . Max Security . | . . . . . . . . . . . Peak Influence 1321 | . 254 2 268 102 . 301 237 1321 657 227 Initial 643 | . . 2 . 102 . . 113 154 643 227 Average 261 | . 66 . 119 13 . 107 143 768 555 116 Influence Increases 4406 | . 441 . 988 8 . 471 719 1407 243 129 Destroy 0b10 Robot/C 2610 | . 280 . 660 . . 320 440 700 150 60 Destroy 0b10 Robot/NC 226 | . 40 . 60 . . 15 95 . 4 12 Destroy Leader 478 | . 52 . 178 . . 50 120 30 40 8 Allied During Kill 10 | . . . . . . . . 10 . . Successful Hack 100 | . 17 . 27 8 . . 11 . 13 24 Disable Machine 138 | . 15 . 45 . . . 15 15 36 12 Anti-Garrison Action 475 | . . . . . . . . 475 . . Destroy Structure 237 | . 22 . 18 . . 86 23 87 . 1 Lose Combat Pursuer 132 | . 15 . . . . . 15 90 . 12 Influence Decreases 4406 | . 434 7 726 270 . 180 773 323 1064 629 Entered New Map 1377 | . . 5 . 160 . . 178 83 678 273 Time Decay 2549 | . 434 2 656 110 . 150 545 . 386 266 Lost Part 380 | . . . 70 . . 30 50 140 . 90 Lost Ally 100 | . . . . . . . . 100 . . Squads Dispatched 14 | . 2 . 4 . . . 4 . 1 3 Investigation 3 | . 1 . 1 . . . 1 . . . Extermination 1 | . . . . . . . . . . 1 Reinforcement 7 | . 1 . 3 . . . 2 . 1 . Assault 2 | . . . . . . . . . . 2 Garrison 1 | . . . . . . . 1 . . . Intercept . | . . . . . . . . . . . Searches Triggered . | . . . . . . . . . . . Construction Impeded 1 | . . . . . . . 1 . . . Haulers Reinforced . | . . . . . . . . . . . Active Scanning Responses . | . . . . . . . . . . . Cargo Convoy Interrupts . | . . . . . . . . . . . Stealth | -11 -10 -10 -9 -9 -9 -8 -8 -8 -8 -7 --------- Run | Yrd Mat Min Mat Min Exi Min Mat Gar Mat Fac Distress Signals 8 | . . . 4 . . . 4 . . . Communications Jammed . | . . . . . . . . . . . Distress Signals . | . . . . . . . . . . . Times Spotted 197 | . 28 . 63 . . 16 34 39 12 5 Peak Tracking Total 7 | . 5 . 6 . . 7 6 6 3 5 Tactical Retreats 8 | . 1 . . . . . 1 5 . 1 Traps | -11 -10 -10 -9 -9 -9 -8 -8 -8 -8 -7 ------- Run | Yrd Mat Min Mat Min Exi Min Mat Gar Mat Fac Traps Triggered 15 | . 2 . . . . . . 9 1 3 Indirectly . | . . . . . . . . . . . Trap Hack Attempts . | . . . . . . . . . . . Triggered . | . . . . . . . . . . . Disarmed . | . . . . . . . . . . . Reprogrammed . | . . . . . . . . . . . Reused . | . . . . . . . . . . . Traps Extracted . | . . . . . . . . . . . Installed . | . . . . . . . . . . . Triggered . | . . . . . . . . . . . Machines | -11 -10 -10 -9 -9 -9 -8 -8 -8 -8 -7 ---------- Run | Yrd Mat Min Mat Min Exi Min Mat Gar Mat Fac Machines Disabled 15 | . 2 . 3 . . . 1 5 3 1 Max in Single Turn 2 | . 1 . 1 . . . 1 2 1 1 Garrison Access 1 | . . . . . . . . . . 1 Garrison Relay 2 | . . . . . . . . 2 . . Phase Generator 1 | . . . . . . . . 1 . . Machines Repaired . | . . . . . . . . . . . Machines Dismantled . | . . . . . . . . . . . Machines Sabotaged . | . . . . . . . . . . . Overloaded Fab Kills . | . . . . . . . . . . . Hacking | -11 -10 -10 -9 -9 -9 -8 -8 -8 -8 -7 --------- Run | Yrd Mat Min Mat Min Exi Min Mat Gar Mat Fac Machines Accessed 32 | . 7 . 5 1 4 . 7 1 4 3 Terminals 20 | . 6 . 4 1 . . 4 1 3 1 Fabricators 1 | . . . . . . . . . . 1 Repair Stations 3 | . 1 . 1 . . . 1 . . . Recycling Units 1 | . . . . . . . 1 . . . Scanalyzers 1 | . . . . . . . . . 1 . Garrison Access 2 | . . . . . . . 1 . . 1 Total Hacks 92 | . 27 . 19 1 4 . 17 2 16 6 Successful 55 | . 16 . 11 1 4 . 8 . 12 3 Failed 36 | . 11 . 8 . . . 9 2 3 3 Catastrophic 8 | . 1 . 4 . . . . 2 1 . Database Lockouts 1 | . . . . . . . . . 1 . Manual 58 | . 18 . 13 . . . 13 . 8 6 Terminals 55 | . 17 . 13 1 . . 12 2 8 2 Fabricators 1 | . . . . . . . . . . 1 Repair Stations 18 | . 10 . 6 . . . 2 . . . Recycling Units 2 | . . . . . . . 2 . . . Scanalyzers 8 | . . . . . . . . . 8 . Garrison Access 4 | . . . . . . . 1 . . 3 Terminal Hacks 8 | . 2 . 1 1 4 . . . . . Record 4 | . . . . . 4 . . . . . Level Access Points 1 | . . . . 1 . . . . . . Branch Access Points 1 | . . . 1 . . . . . . . Terminal Index 1 | . 1 . . . . . . . . . Locate Traps 1 | . 1 . . . . . . . . . Fabricator Hacks . | . . . . . . . . . . . Repair Station Hacks 15 | . 7 . 6 . . . 2 . . . Scan Component 8 | . 4 . 3 . . . 1 . . . Repair 7 | . 3 . 3 . . . 1 . . . Recycling Unit Hacks 1 | . . . . . . . 1 . . . Retrieve Components 1 | . . . . . . . 1 . . . Scanalyzer 7 | . . . . . . . . . 7 . Insert Component 2 | . . . . . . . . . 2 . Analyze 2 | . . . . . . . . . 2 . Retrieve Study 3 | . . . . . . . . . 3 . Garrison Access Hacks 1 | . . . . . . . 1 . . . Unlock Access 1 | . . . . . . . 1 . . . Unauthorized Hacks 23 | . 7 . 4 . . . 4 . 5 3 Terminals 20 | . 7 . 4 . . . 4 . 5 . Botnet 15 | . 5 . 3 . . . 4 . 3 . Disrupt 2 | . 1 . . . . . . . 1 . Operators 3 | . 1 . 1 . . . . . 1 . Fabricators 1 | . . . . . . . . . . 1 Fabnet 1 | . . . . . . . . . . 1 Repair Stations . | . . . . . . . . . . . Recycling Units . | . . . . . . . . . . . Scanalyzers . | . . . . . . . . . . . Garrison Access 2 | . . . . . . . . . . 2 Broadcast 1 | . . . . . . . . . . 1 Reprogram 1 | . . . . . . . . . . 1 Data Cores Recovered . | . . . . . . . . . . . Used . | . . . . . . . . . . . Hacking Detections 24 | . 7 . 5 . . . 5 1 4 2 Full Trace Events 6 | . 1 . 1 . . . 1 1 2 . Feedback Events . | . . . . . . . . . . . Feedback Blocked . | . . . . . . . . . . . Robot Schematics Acquired . | . . . . . . . . . . . Robots Built . | . . . . . . . . . . . Authchips . | . . . . . . . . . . . Time . | . . . . . . . . . . . Total Robot Build Rating . | . . . . . . . . . . . Part Schematics Acquired 2 | . . . . . . . . . 2 . Parts Built . | . . . . . . . . . . . Authchips . | . . . . . . . . . . . Time . | . . . . . . . . . . . Total Part Build Rating . | . . . . . . . . . . . Part Studies Acquired 3 | . . . . . . . . . 3 . Parts Repaired 7 | . 3 . 3 . . . 1 . . . Time 219 | . 78 . 115 . . . 26 . . . Parts Recycled . | . . . . . . . . . . . Recycled Matter . | . . . . . . . . . . . Retrieved Matter . | . . . . . . . . . . . Retrieved Components 6 | . . . . . . . 6 . . . Parts Scanalyzed 2 | . . . . . . . . . 2 . Part Schematics Acquired 2 | . . . . . . . . . 2 . Parts Damaged 1 | . . . . . . . . . 1 . Bothacking | -11 -10 -10 -9 -9 -9 -8 -8 -8 -8 -7 ------------ Run | Yrd Mat Min Mat Min Exi Min Mat Gar Mat Fac Used RIF Installer 2 | . . . . . . . . 2 . . Threat Obfuscator 1 | . . . . . . . . 1 . . Robots Hacked 1 | . . . . . . 1 . . . . Non-combat 1 | . . . . . . 1 . . . . Combat . | . . . . . . . . . . . Robot Hacks Applied 1 | . . . . . . 1 . . . . no_distress 1 | . . . . . . 1 . . . . Relay Couplers Released 9 | . . . . . . . . 8 . 1 Machine Destruction 9 | . . . . . . . . 8 . 1 Fabnet Peak Effective % . | . . . . . . . . . . . Robots Rewired 9 | . . . . . . . . 9 . . Allies Hacked . | . . . . . . . . . . . Hacks Repelled . | . . . . . . . . . . . Allies | -11 -10 -10 -9 -9 -9 -8 -8 -8 -8 -7 -------- Run | Yrd Mat Min Mat Min Exi Min Mat Gar Mat Fac Total Allies 11 | . . . . 1 . . . 10 . . Largest Group 6 | . . . . 1 . . . 6 . . Highest-Rated Group 102 | . . . . 31 . . . 102 . . Highest-Rated Ally 39 | . . . . 31 . . . 39 . . Total Orders . | . . . . . . . . . . . Ally Attacks 44 | . . . . . . . . 44 . . Total Damage 417 | . . . . . . . . 417 . . Kills 4 | . . . . . . . . 4 . . Allies Corrupted . | . . . . . . . . . . . Allies Melted . | . . . . . . . . . . . Intel | -11 -10 -10 -9 -9 -9 -8 -8 -8 -8 -7 ------- Run | Yrd Mat Min Mat Min Exi Min Mat Gar Mat Fac Active Infowar (turns) 4718 | . . 162 2 . . 20 1543 2148 549 294 Sensors 1857 | . . . . . . 20 1543 . . 294 Terrain 236 | . . . . . . . . . . 236 Structural 2697 | . . . . . . . . 2148 549 . Seismic 164 | . . 162 2 . . . . . . . Robot Analysis Total . | . . . . . . . . . . . Derelict Logs Recovered 2 | . . . . 2 . . . . . . Drone Launches . | . . . . . . . . . . . Drone Recoveries . | . . . . . . . . . . . Exploration | -11 -10 -10 -9 -9 -9 -8 -8 -8 -8 -7 ------------- Run | Yrd Mat Min Mat Min Exi Min Mat Gar Mat Fac Turns Passed 12650 | 57 1572 178 3109 835 1221 336 1639 2151 900 652 Spaces Moved 4616 | 30 611 56 930 346 509 106 509 614 346 559 Core 40 | 2 . . . . . . . 1 . 37 Treads 3987 | 28 611 56 930 346 509 106 509 453 346 93 Legs 160 | . . . . . . . . 160 . . Wheels . | . . . . . . . . . . . Hover 80 | . . . . . . . . . . 80 Flight 349 | . . . . . . . . . . 349 Fastest Speed 27 | 50 160 320 240 240 240 240 240 240 200 27 Average Speed 223 | 152 212 320 240 240 240 240 242 294 205 89 Slowest Speed 1650 | 160 320 320 240 240 240 240 320 1650 240 320 Overloaded Moves . | . . . . . . . . . . . Propulsion Burnouts . | . . . . . . . . . . . Robots Hopped . | . . . . . . . . . . . Potential Cave-ins . | . . . . . . . . . . . Cave-ins Triggered . | . . . . . . . . . . . Exploration Rate (%) 50 | 4 97 21 78 61 92 46 46 56 42 13 Regions Visited 10 Branch Regions 4 Pre-discovered Areas . | . . . . . . . . . . . Known Exits Taken 3 | . . . 1 . . 1 1 . . . Unknown Exits Taken 6 | 1 1 1 . 1 1 . . . 1 . Scrap Searched . | . . . . . . . . . . . Spaces Dug 6 | . . . 3 . . . 2 . . 1 Terrain Destroyed 330 | . 23 . 13 . . 132 17 144 . 1 Melee 6 | . . . 3 . . . 2 . . 1 Projectile 1 | . . . . . . . . 1 . . AOE 323 | . 23 . 10 . . 132 15 143 . . Terrain Rammed . | . . . . . . . . . . . Walls Destroyed . | . . . . . . . . . . . Machines Disabled . | . . . . . . . . . . . Actions | -11 -10 -10 -9 -9 -9 -8 -8 -8 -8 -7 --------- Run | Yrd Mat Min Mat Min Exi Min Mat Gar Mat Fac Total 6184 | 38 804 56 1554 350 509 146 746 824 478 679 Wait 727 | . 105 . 372 1 . 8 75 47 72 47 Move 4606 | 29 611 55 929 345 508 105 508 612 345 559 Hop . | . . . . . . . . . . . Pick Up 93 | 3 15 . 28 1 . . 14 15 4 13 Fast Attach 33 | 6 3 . 8 . . . 3 6 . 7 Attach 30 | . . . 6 . . 4 3 11 . 6 Detach 4 | . . . 1 . . . . 2 . 1 Swap 88 | . 6 1 19 1 1 6 14 20 9 11 Drop 63 | . 3 . 21 1 . . 10 6 7 15 Fire 473 | . 53 . 161 . . 21 110 73 40 15 Melee 37 | . . . 4 . . 1 4 23 . 5 Ram . | . . . . . . . . . . . Kick . | . . . . . . . . . . . Crush 22 | . 8 . 5 1 . 1 5 1 1 . Escape Stasis 8 | . . . . . . . . 8 . . Rewire . | . . . . . . . . . . . Trap . | . . . . . . . . . . . Miscellaneous . | . . . . . . . . . . . Route ------- -11/Scrapyard -10/Materials (discovered 5 exits: *Mat x3 / [*Min] / [*Sub]) -10/Mines -9/Materials (discovered 4 exits: *Mat x2 / *Min x2) -9/Mines (discovered 3 exits: *Mat x2 / *Exi) -9/Exiles -8/Mines -8/Materials (discovered 3 exits: *Fac / [*Sto] / Gar) -8/Garrison -8/Materials (discovered 2 exits: *Fac / [*Sto]) -7/Factory (discovered 1 exit: Low) History --------- Turn | Location | Event 28 | -11/Scrapyard | Discovered new exit (range 16) 58 | -11/Scrapyard | Entered Materials 234 | -10/Materials | Discovered new exit (range 7) 310 | -10/Materials | Build established: Mutant 620 | -10/Materials | Discovered new exit (range 13) 719 | -10/Materials | Discovered new exit (range 4) 923 | -10/Materials | Repaired Ion Engine 950 | -10/Materials | Repaired Grenade Launcher 977 | -10/Materials | Repaired Lgt. Treads 1256 | -10/Materials | Discovered new exit (range 12) 1438 | -10/Materials | Discovered new exit (range 7) 1630 | -10/Materials | Entered Mines 1786 | -10/Mines | Discovered new exit (range 7) 1808 | -10/Mines | Entered Materials 1808 | -9/Materials | Evolved 2 slots: Propulsion x1, Utility x1 2173 | -9/Materials | Destroyed 7 combat bots 2173 | -9/Materials | Discovered new exit (range 16) 2174 | -9/Materials | Lost 6 parts (1p3n1u1w) 2996 | -9/Materials | Discovered new exit (range 10) 3750 | -9/Materials | Discovered new exit (range 13) 4194 | -9/Materials | Identified exit to Mines 4301 | -9/Materials | Discovered new exit (range 5) 4658 | -9/Materials | Repaired Grenade Launcher 4697 | -9/Materials | Repaired Hvy. Armor Plating 4750 | -9/Materials | Repaired Cld. Ion Engine 4917 | -9/Materials | Entered Mines 4920 | -9/Mines | Received a Mining Laser from a helpful Derelict 5196 | -9/Mines | YI-UF0 nonchalantly dropped a Grenade Launcher on the ground 5665 | -9/Mines | Identified exit to Materials 5740 | -9/Mines | Deemed a non-threat by the Exiles lab entrance 5742 | -9/Mines | Discovered new exit (range 5) 5752 | -9/Mines | Entered Exiles 5752 | -9/Exiles | Found Exiles lab abandoned 6949 | -9/Exiles | Discovered new exit (range 10) 6973 | -9/Exiles | Entered Mines 7246 | -8/Mines | Destroyed 10 combat bots 7282 | -8/Mines | Core integrity fell below 50% 7293 | -8/Mines | Discovered exit to Materials (range 8) 7309 | -8/Mines | Lost 3 parts (2n1u) 7309 | -8/Mines | Entered Materials 7309 | -8/Materials | Evolved 2 slots: Propulsion x1, Utility x1 7362 | -8/Materials | Discovered new exit (range 15) 7720 | -8/Materials | Destroyed 8 combat bots 8335 | -8/Materials | Discovered new exit (range 13) 8748 | -8/Materials | Repaired Lgt. Treads 8841 | -8/Materials | Garrison activated, responded to threat 8946 | -8/Materials | Identified exit to Garrison 8948 | -8/Materials | Entered Garrison 9009 | -8/Garrison | Phase Generator disabled 9108 | -8/Garrison | Lost 4 parts (1p2n1w) 9170 | -8/Garrison | Triggered checkpoint 9219 | -8/Garrison | Lost 6 allies 9390 | -8/Garrison | Triggered checkpoint 9401 | -8/Garrison | Triggered checkpoint 9429 | -8/Garrison | Triggered checkpoint 9481 | -8/Garrison | Build established: Scavenger-Mutant 9525 | -8/Garrison | Installed Relay Interface Framework 9546 | -8/Garrison | Core integrity fell below 50% 9595 | -8/Garrison | Garrison Relay disabled 9664 | -8/Garrison | Triggered checkpoint 9682 | -8/Garrison | Triggered checkpoint 9906 | -8/Garrison | Rescued a captive Derelict 10084 | -8/Garrison | Lost 3 allies 10218 | -8/Garrison | Lost 4 parts (2n2w) 10429 | -8/Garrison | Discovered new exit (range 15) 10764 | -8/Garrison | Triggered checkpoint 10810 | -8/Garrison | Garrison Relay disabled 10945 | -8/Garrison | Expanded RIF knowledge: Threat Obfuscation 11099 | -8/Garrison | Entered Materials 11131 | -8/Materials | Build established: Bothacker-Mutant 11226 | -8/Materials | Central database locked down 11267 | -8/Materials | Discovered new exit (range 8) 11597 | -8/Materials | Discovered new exit (range 5) 11872 | -8/Materials | Core integrity fell below 20% 11999 | -8/Materials | Entered Factory 11999 | -7/Factory | Evolved 2 slots: Utility x1, Weapon x1 12000 | -7/Factory | Identified exit to Lower Caves 12186 | -7/Factory | Lost 3 parts (3n) 12547 | -7/Factory | Lost 6 parts (1p2n1u2w) 12612 | -7/Factory | Core integrity fell below 50% 12642 | -7/Factory | Lost 7 parts (4n2u1w) 12651 | -7/Factory | Self-destructed Last Messages --------------- Acquired Xenon Bombardment Thruster. Triggered Heavy Explosive Trap. An explosion rips through the floor. Gravmag System destroyed. Cesium-ion Thruster destroyed. Power Conduit explodes. Gravmag System destroyed. Imp. Signal Interpreter destroyed. Cesium-ion Thruster destroyed. Powered Hammer destroyed. Imp. Sensor Array destroyed. Power Conduit explodes. >> BROADCAST: Garrison Access F002 dispatching Assault squad: C-45 Heavy ARC. ALERT: Garrison Access compromised, dispatching multiple assault carriers. Garrison Access disabled. Relay Coupler [Grunt] tumbles out of Garrison Access. K-01 Serf collects debris. Map ----- +----------------------------------------------------+ | ?????????????????????????????# " " " """# " " " " | | ?????????????????????????????# " " " "# " " " " | | ?????????????????????????????# " " " "F"# ^" " " " | | ?????????????????????????????# " " " """# " " " " | | ?????????????????????????????# " " " # " " " " | | ?????????????????????????????# " " " + " " " " | | ?????????????????????????????# " " " # | | ?????????????????????????????# " " " # " " | | ?????????????????????????????# " " " # " " | | ?????????????????????????????# # ^ " " | | ?????????????????????????????# # " " | | ?????????????????????????????# # " " | | ?????????????????????????????# # " " | | ??????????????????####################### !!! " " | | ??????????????????# ! #???????# !! " " | | ??????????????????# ! #???????# !! " " | | ??????????????????# ######### | | ??????????????????# """" """" + | | ??????????????????# ] """" """" ## ] # | | ??????????????????# """" """" ## ^ # | | ??????????????????# """" """" ## # | | ??????????????????# """" """" ## # | | ??????????????????# """" """" ## # | | ??????????????#???# """" """" ## | | ??????????????# ??#[ ## | | ????????????### #########@######"" | | ????????????# | | ????????????# | | ???????????## " | | ???????????# " | | ???????????## " | | ???????????# " | | ??????????## k # | | ??????????# # " # | | ??????????## #####;;;#""####+##### | | ??????????# #???###### [ | | ??????????### #????????# """ """ | | ???????????## #????????# """ """ | | ???????????# #?????#??# """ """ | | ????????????# "" #????????# | | ????????????# "F"" #????????# """ """ | | ????????????# """" #??#?????# """ """ | | ????????????### # # ######????????# ! """ """ | | ??????????????? ## # ?????#?????????# | | ?????????????????# ###???????????????# | | ??????????????????????????????????????# ! | | ??????????????????????????????????????# | | ??????????????????????????????????????############ | | ?????????????????????????????????????????????????? | | ?????????????????????????????????????????????????? | +----------------------------------------------------+ Best States ------------- Heat Dissipation 53 Energy Generation 14 Energy Capacity 280 Matter Stores 300 Matter Capacity 300 Sight Range 16 Robot Scan Range 15 Terrain Scan Range 16 Terrain Scan Density 10 Armor Coverage 600 Core Shielding 20 Propulsion Shielding 33 Utility Shielding 33 Evasion (%) 64 Targeting Accuracy 8 Target Analysis 5 Recoil Reduction 4 Offensive Hacking 10 Item Schematics ----------------- Mni. Grenade Launcher | -8/Materials | Scanalyzed Airjet | -8/Materials | Scanalyzed Robot Schematics ------------------ None Fabricated ------------ Nothing Repaired ---------- Ion Engine | 28% | -10/Materials Grenade Launcher | 45% | -10/Materials Lgt. Treads | 50% | -10/Materials Grenade Launcher | 15% | -9/Materials Hvy. Armor Plating | 63% | -9/Materials Cld. Ion Engine | 63% | -9/Materials Lgt. Treads | 18% | -8/Materials Studied --------- Lgt. Treads | -8/Materials | Hacked Mni. Grenade Launcher | -8/Materials | Hacked Wheel | -8/Materials | Hacked Alien Tech Used ----------------- None Achievements -------------- None Challenges ------------ None Game ------ Seed ChipWaveMinigun Manual? 0 Play Time 01:05:24 Cumulative 19.3 hours Start 2026.01.13 @ 00:59:56 End 2026.01.13 @ 18:27:28 Sessions 3 Manual Loads 0 Difficulty Rogue Special Mode None Game No. 25 Rogue 25 Adventurer 0 Explorer 0 Win Type - Total 0 Types 0/0/0/0/0/0/0/0/0/0 Lore% 10 Gallery% 23 Achievement% 24 Wizard Run 0 Options --------- Layout 1 ASCII 0 Keyboard 1 Movement Vi Keybinds 0 Fullscreen 1 Font 24/Smallcaps Map View 50x40 Zoom Use 86% Tactical HUD 0 Map Filters NONE Filters NONE Steam 1 RUN: 1b046806-f3f3-40be-b63c-daa221ca0b9f